Buisness Unit,Buisness Code,Service Code,Service Label,Organisational Unit,Expenditure ,Calc Payment Date,Net Payment ,Transaction Number,Supplier ID,Supplier Name
North West Leicestershire District Council,31UH,HRAOPS,Housing,HRA Older Persons Service,Service Charges,31/12/2013,"1,096.93",1274030,A001468,Severn Trent Water Limited
North West Leicestershire District Council,31UH,CS,Communications,Corporate - Customer Services,Postages,31/12/2013,"4,000.00",1274043,A000079,Neopost Limited
North West Leicestershire District Council,31UH,EXCH,Finance,Exchequer Services,Electricity,31/12/2013,"9,439.37",1274075,A034733,British Gas Business
North West Leicestershire District Council,31UH,NACCS,Neighbourhoods & Communities,N & C Community Safety,Extended Services,31/12/2013,"1,840.00",1274076,A039549,Mair Health
North West Leicestershire District Council,31UH,HRAHM,Housing,HRA Housing Management,Miscellaneous,31/12/2013,748.00,1274109,A039091,Energico
North West Leicestershire District Council,31UH,HRAHM,Housing,HRA Housing Management,Miscellaneous,31/12/2013,"1,292.00",1274114,A039091,Energico
North West Leicestershire District Council,31UH,HPLC,Leisure Centres,Hood Park Leisure Centre,Water Charges (Metered),31/12/2013,"1,019.00",1274140,A001468,Severn Trent Water Limited
North West Leicestershire District Council,31UH,HLC,Leisure Centres,Hermitage Leisure Centre,Water Charges (Metered),31/12/2013,874.00,1274143,A001468,Severn Trent Water Limited
North West Leicestershire District Council,31UH,HPLC,Leisure Centres,Hood Park Leisure Centre,Telephone Charge / Rental,31/12/2013,580.83,1274144,A035373,Virgin Media Business
North West Leicestershire District Council,31UH,HRAHRM,Housing Repairs,HRA Housing Repairs & Maintenance,Hire Of Operational Equipment,31/12/2013,550.00,1274157,A038405,Emperor Scaffolding Limited
North West Leicestershire District Council,31UH,EES,Environmental Health,Environmental Services,Grants,31/12/2013,"2,977.00",1274181,A038469,Leicestershire County Council
North West Leicestershire District Council,31UH,HRAHRM,Housing Repairs,HRA Housing Repairs & Maintenance,Tipping Charges,31/12/2013,"3,243.24",1274185,A035471,Ward Recycling
North West Leicestershire District Council,31UH,LDLS,Legal & Democratic,Legal Services,External Legal Fees & Advice,31/12/2013,"1,314.96",1274226,A000251,Browne Jacobson LLP
North West Leicestershire District Council,31UH,LDLS,Legal & Democratic,Legal Services,External Legal Fees & Advice,31/12/2013,"1,009.00",1274227,A000251,Browne Jacobson LLP
North West Leicestershire District Council,31UH,LDLS,Legal & Democratic,Legal Services,Legal & Professional Services,31/12/2013,872.00,1274228,A000251,Browne Jacobson LLP
North West Leicestershire District Council,31UH,LDLS,Legal & Democratic,Legal Services,Legal & Professional Services,31/12/2013,"2,071.00",1274229,A031366,Bevan Brittan
North West Leicestershire District Council,31UH,EES,Environmental Health,Environmental Services,Stray Dog Service,31/12/2013,"1,339.34",1274230,A000385,College Garth Boarding Kennels
North West Leicestershire District Council,31UH,LDLS,Legal & Democratic,Legal Services,Legal & Professional Services,31/12/2013,"1,086.00",1274241,A000251,Browne Jacobson LLP
North West Leicestershire District Council,31UH,ECP,Planning & Development,Environment Community Planning,Urban Design/Our Place,31/12/2013,"2,241.60",1274249,A034297,Stefan Kruczkowski
North West Leicestershire District Council,31UH,LDLS,Legal & Democratic,Legal Services,Untranslateable Postings,31/12/2013,952.74,1274252,A037595,Thomson Reuters (Professional) UK Limited
North West Leicestershire District Council,31UH,LDELC,Legal & Democratic,Electoral & Land Charges,Stationery,08/01/2014,"1,001.23",1274474,A028974,SCI Print Limited
North West Leicestershire District Council,31UH,LDELC,Legal & Democratic,Electoral & Land Charges,Other Printing,08/01/2014,"4,339.09",1274475,A028974,SCI Print Limited
North West Leicestershire District Council,31UH,EXCH,Finance,Exchequer Services,Agency Staff,08/01/2014,"1,883.58",1274480,A036958,Comensura Limited
North West Leicestershire District Council,31UH,EXCH,Finance,Exchequer Services,Agency Staff,08/01/2014,"15,620.95",1274481,A036958,Comensura Limited
North West Leicestershire District Council,31UH,EXCH,Finance,Exchequer Services,LEICS FIRE & RESCUE,07/01/2014,"166,375.00",1274614,A028339,"Leicester, Leicestershire &"
North West Leicestershire District Council,31UH,EXCH,Finance,Exchequer Services,Leicstershire Police,07/01/2014,"495,661.60",1274617,A007096,The Office of the Police and Crime Commissioner for Leicestershire
North West Leicestershire District Council,31UH,EXCH,Finance,Exchequer Services,Gas,07/01/2014,"4,776.56",1274619,A000958,ESPO
North West Leicestershire District Council,31UH,EXCH,Finance,Exchequer Services,Gas,07/01/2014,"14,902.54",1274620,A035709,Corona Energy Retail 4 Ltd
North West Leicestershire District Council,31UH,HRAHRM,Housing Repairs,HRA Housing Repairs & Maintenance,General Materials,07/01/2014,"44,637.70",1274623,A036453,Collective Enterprises Ltd
North West Leicestershire District Council,31UH,LDLS,Legal & Democratic,Legal Services,Books & Publications,08/01/2014,"2,564.58",1274552,A037595,Thomson Reuters (Professional) UK Limited
North West Leicestershire District Council,31UH,LDLS,Legal & Democratic,Legal Services,Books & Publications,08/01/2014,"1,565.46",1274555,A037595,Thomson Reuters (Professional) UK Limited
North West Leicestershire District Council,31UH,LDLS,Legal & Democratic,Legal Services,Books & Publications,08/01/2014,"4,600.00",1274556,A037595,Thomson Reuters (Professional) UK Limited
North West Leicestershire District Council,31UH,LDLS,Legal & Democratic,Legal Services,Books & Publications,08/01/2014,"8,060.00",1274557,A037595,Thomson Reuters (Professional) UK Limited
North West Leicestershire District Council,31UH,HRAHM,Housing,HRA Housing Management,Electricity,08/01/2014,502.07,1274593,A000528,E.on
North West Leicestershire District Council,31UH,EXCH,Finance,Exchequer Services,Contract Payments (Other) Ext,08/01/2014,"2,550.00",1274820,A010859,Selima Limited
North West Leicestershire District Council,31UH,EXCH,Finance,Exchequer Services,Financial Services,08/01/2014,"2,408.05",1274821,A010859,Selima Limited
North West Leicestershire District Council,31UH,ENOWM,Street Management,Environment Waste Management,Electricity,08/01/2014,"2,109.34",1274913,A028766,E.ON Energy Electricity Income Account
North West Leicestershire District Council,31UH,EXCH,Finance,Exchequer Services,Agency Staff,15/01/2014,"9,080.77",1274935,A036958,Comensura Limited
North West Leicestershire District Council,31UH,ICT,Information Technology,ICT Services,Telephone Charge / Rental,15/01/2014,"7,227.33",1274936,A008908,Virgin Media Business
North West Leicestershire District Council,31UH,LDELC,Legal & Democratic,Electoral & Land Charges,Postages,15/01/2014,"1,814.06",1274938,A001418,Royal Mail Group Plc
North West Leicestershire District Council,31UH,ICT,Information Technology,ICT Services,Expenditure against earmarked reserve,15/01/2014,"7,980.00",1274942,A001861,Vodafone Limited
North West Leicestershire District Council,31UH,PROPCL,Property Services,Property Commercial Lettings,Telephones,15/01/2014,644.87,1274960,A000233,British Telecommunications Plc
North West Leicestershire District Council,31UH,ESS,Street Management,Environment - Street Scene,Water Charges (Metered),15/01/2014,853.96,1274961,A001468,Severn Trent Water Limited
North West Leicestershire District Council,31UH,PROPFM,Property Services,Property Facilities Management,Electricity,15/01/2014,"3,924.44",1274985,A030266,Southern Electric
North West Leicestershire District Council,31UH,HLC,Leisure Centres,Hermitage Leisure Centre,Telephone Charge / Rental,15/01/2014,592.50,1275011,A000233,British Telecommunications Plc
North West Leicestershire District Council,31UH,HS,Housing Strategy,Community - Housing Strategy,Grants,15/01/2014,"1,012.00",1275015,A013575,North West Leicestershire
North West Leicestershire District Council,31UH,HS,Housing Strategy,Community - Housing Strategy,Grants,15/01/2014,"9,350.00",1275016,A000530,East Midlands Housing Assocn
North West Leicestershire District Council,31UH,EXCH,Finance,Exchequer Services,Collection - Cash,15/01/2014,945.67,1275062,A004468,Kings Armoured Security Services Ltd
North West Leicestershire District Council,31UH,HPLC,Leisure Centres,Hood Park Leisure Centre,Electricity,15/01/2014,"1,054.13",1275072,A030266,Southern Electric
North West Leicestershire District Council,31UH,HPLC,Leisure Centres,Hood Park Leisure Centre,Water Charges (Metered),15/01/2014,792.31,1275074,A001468,Severn Trent Water Limited
North West Leicestershire District Council,31UH,ECP,Planning & Development,Environment Community Planning,Tree Officer,15/01/2014,"1,372.92",1275102,A000770,Hinckley & Bosworth Borough Council
North West Leicestershire District Council,31UH,ECP,Planning & Development,Environment Community Planning,Untranslateable Postings,15/01/2014,"10,000.00",1275103,A000950,Leicestershire County Council
North West Leicestershire District Council,31UH,CULTYP,Leisure & Culture,Cultural Services Children & YoungPeople,Extended Services,15/01/2014,"8,916.00",1275104,A040958,Baby Dolly
North West Leicestershire District Council,31UH,FINPLA,Finance,Financial Planning,Transport - Operating Leases,15/01/2014,"4,913.69",1275111,A033051,JCB Finance (Leasing) Ltd
North West Leicestershire District Council,31UH,ECP,Planning & Development,Environment Community Planning,Urban Design/Our Place,15/01/2014,"2,245.20",1275123,A034297,Stefan Kruczkowski
North West Leicestershire District Council,31UH,ENOT,Street Management,Environment Transport,Electricity,15/01/2014,"2,132.53",1275125,A028766,E.ON Energy Electricity Income Account
North West Leicestershire District Council,31UH,HLC,Leisure Centres,Hermitage Leisure Centre,Untranslateable Postings,15/01/2014,592.50,1275126,A000233,British Telecommunications Plc
North West Leicestershire District Council,31UH,ESS,Street Management,Environment - Street Scene,Private Owners,15/01/2014,"4,226.83",1275128,A037057,D'Zign Uk Group
North West Leicestershire District Council,31UH,EXCH,Finance,Exchequer Services,Gas,15/01/2014,"5,881.92",1275705,A000958,ESPO
North West Leicestershire District Council,31UH,EXCH,Finance,Exchequer Services,Gas,15/01/2014,"17,910.10",1275706,A035709,Corona Energy Retail 4 Ltd
North West Leicestershire District Council,31UH,HLC,Leisure Centres,Hermitage Leisure Centre,Swimming Badges,15/01/2014,697.00,1275697,A001837,ASA Awards
North West Leicestershire District Council,31UH,HPLC,Leisure Centres,Hood Park Leisure Centre,Contract Payments (Other) Ext,15/01/2014,"11,750.00",1275711,A039532,Craftsman Quality Lockers Ltd
North West Leicestershire District Council,31UH,LDLS,Legal & Democratic,Legal Services,Computing,22/01/2014,952.74,1275719,A037595,Thomson Reuters (Professional) UK Limited
North West Leicestershire District Council,31UH,CULTYP,Leisure & Culture,Cultural Services Children & YoungPeople,Extended Services,22/01/2014,"8,522.60",1275722,A000780,Homestart (N.W. Leics)
North West Leicestershire District Council,31UH,CULTYP,Leisure & Culture,Cultural Services Children & YoungPeople,Extended Services,22/01/2014,"7,762.40",1275723,A000780,Homestart (N.W. Leics)
North West Leicestershire District Council,31UH,CULTYP,Leisure & Culture,Cultural Services Children & YoungPeople,Extended Services,22/01/2014,"1,661.40",1275724,A000780,Homestart (N.W. Leics)
North West Leicestershire District Council,31UH,CULTYP,Leisure & Culture,Cultural Services Children & YoungPeople,Extended Services,22/01/2014,"2,678.94",1275725,A000780,Homestart (N.W. Leics)
North West Leicestershire District Council,31UH,CULTYP,Leisure & Culture,Cultural Services Children & YoungPeople,Extended Services,22/01/2014,619.90,1275727,A036038,TTS Group Ltd
North West Leicestershire District Council,31UH,CULTYP,Leisure & Culture,Cultural Services Children & YoungPeople,Extended Services,22/01/2014,"3,415.50",1275728,A028026,LCC Warren Hills Primary School
North West Leicestershire District Council,31UH,EXCH,Finance,Exchequer Services,Agency Staff,22/01/2014,"11,646.31",1275744,A036958,Comensura Limited
North West Leicestershire District Council,31UH,HRAHM,Housing,HRA Housing Management,Electricity,22/01/2014,509.54,1275772,A030266,Southern Electric
North West Leicestershire District Council,31UH,CS,Communications,Corporate - Customer Services,Postages,22/01/2014,"5,000.00",1275777,A000079,Neopost Limited
North West Leicestershire District Council,31UH,LDLS,Legal & Democratic,Legal Services,Legal Fees,22/01/2014,"2,200.00",1275781,A038365,Newton Fallowell
North West Leicestershire District Council,31UH,HRAHM,Housing,HRA Housing Management,Water Charges (Metered),22/01/2014,"2,527.54",1275782,A001468,Severn Trent Water Limited
North West Leicestershire District Council,31UH,EXCH,Finance,Exchequer Services,Electricity,22/01/2014,"13,175.78",1275790,A034733,British Gas Business
North West Leicestershire District Council,31UH,CS,Communications,Corporate - Customer Services,Equipment Operating Leases,22/01/2014,"2,552.28",1275776,A031590,Neopost Finance Limited
North West Leicestershire District Council,31UH,EEHL,Environmental Health,Environmental Health & Licensing,Grants,22/01/2014,"1,325.00",1275794,A038469,Leicestershire County Council
North West Leicestershire District Council,31UH,EEHL,Environmental Health,Environmental Health & Licensing,Grants,22/01/2014,"2,890.00",1275795,A038469,Leicestershire County Council
North West Leicestershire District Council,31UH,FINPLA,Finance,Financial Planning,Operational Equipment - Purchases,22/01/2014,"1,600.00",1275796,A035603,Arlingclose Ltd
North West Leicestershire District Council,31UH,FINPLA,Finance,Financial Planning,Operational Equipment - Purchases,22/01/2014,"1,900.00",1275797,A035603,Arlingclose Ltd
North West Leicestershire District Council,31UH,FINPLA,Finance,Financial Planning,Operational Equipment - Purchases,22/01/2014,"13,300.00",1275798,A035603,Arlingclose Ltd
North West Leicestershire District Council,31UH,ESS,Street Management,Environment - Street Scene,Stray Dog Service,22/01/2014,"1,480.80",1275814,A000385,College Garth Boarding Kennels
North West Leicestershire District Council,31UH,HLC,Leisure Centres,Hermitage Leisure Centre,Electricity,22/01/2014,"3,309.81",1275820,A030266,Southern Electric
North West Leicestershire District Council,31UH,HLC,Leisure Centres,Hermitage Leisure Centre,Water Charges (Metered),22/01/2014,874.00,1275821,A001468,Severn Trent Water Limited
North West Leicestershire District Council,31UH,HLC,Leisure Centres,Hermitage Leisure Centre,Water Charges (Metered),22/01/2014,"1,374.05",1275845,A001468,Severn Trent Water Limited
North West Leicestershire District Council,31UH,ENOT,Street Management,Environment Transport,Non Insurance Damage,22/01/2014,"1,000.00",1275912,A031849,Lee Wells Autobodies Ltd
North West Leicestershire District Council,31UH,HPLC,Leisure Centres,Hood Park Leisure Centre,Water Charges (Metered),22/01/2014,"1,019.00",1275913,A001468,Severn Trent Water Limited
North West Leicestershire District Council,31UH,ECCTV,Planning & Development,Environment - Town Centre/CCTV,Electricity,22/01/2014,"1,193.78",1275914,A030266,Southern Electric
North West Leicestershire District Council,31UH,FINPLA,Finance,Financial Planning,Equipment Operating Leases,22/01/2014,521.00,1275937,A034516,Asset Advantage Limited
North West Leicestershire District Council,31UH,CULTYP,Leisure & Culture,Cultural Services Children & YoungPeople,Extended Services,22/01/2014,"8,500.00",1275941,A001208,MRC Community Action
North West Leicestershire District Council,31UH,FINPLA,Finance,Financial Planning,Miscellaneous Insurances,22/01/2014,"1,587.00",1275961,A001835,Zurich Municipal
North West Leicestershire District Council,31UH,FINPLA,Finance,Financial Planning,Operational Equipment - Purchases,22/01/2014,"3,450.00",1275962,A035603,Arlingclose Ltd
North West Leicestershire District Council,31UH,HRAHRM,Housing Repairs,HRA Housing Repairs & Maintenance,General Materials,21/01/2014,"65,438.88",1275974,A036453,Collective Enterprises Ltd
North West Leicestershire District Council,31UH,HRAHRM,Housing Repairs,HRA Housing Repairs & Maintenance,Tipping Charges,22/01/2014,"3,284.40",1275972,A035471,Ward Recycling
North West Leicestershire District Council,31UH,HS,Housing Strategy,Community - Housing Strategy,Residents Associations,22/01/2014,600.00,1276075,A038616,Hugglescote & Donington Le Heath
North West Leicestershire District Council,31UH,HRAHRM,Housing Repairs,HRA Housing Repairs & Maintenance,Consultants Fees,22/01/2014,"4,620.60",1276090,A039973,Lovell Partnerships Ltd
North West Leicestershire District Council,31UH,HRAHRM,Housing Repairs,HRA Housing Repairs & Maintenance,Decent Homes,22/01/2014,"308,465.67",1276141,A039980,Kier Services Maintenance East Ltd
North West Leicestershire District Council,31UH,HRAHRM,Housing Repairs,HRA Housing Repairs & Maintenance,Front Door - Timber,22/01/2014,"65,538.80",1276148,A039980,Kier Services Maintenance East Ltd
North West Leicestershire District Council,31UH,HRAHRM,Housing Repairs,HRA Housing Repairs & Maintenance,Decent Homes,22/01/2014,"625,208.94",1276149,A039973,Lovell Partnerships Ltd
North West Leicestershire District Council,31UH,HRAHRM,Housing Repairs,HRA Housing Repairs & Maintenance,Wiring - Rewire & Consumer Unit,22/01/2014,"22,456.23",1276150,A039973,Lovell Partnerships Ltd
North West Leicestershire District Council,31UH,HRAHRM,Housing Repairs,HRA Housing Repairs & Maintenance,Schedule of rates contract,31/12/2013,"2,213.75",1274394,A031787,Laker BMS Ltd
North West Leicestershire District Council,31UH,HRAHRM,Housing Repairs,HRA Housing Repairs & Maintenance,Schedule of rates contract,31/12/2013,699.22,1274420,A031787,Laker BMS Ltd
North West Leicestershire District Council,31UH,HRAHRM,Housing Repairs,HRA Housing Repairs & Maintenance,Boiler - Gas,31/12/2013,622.33,1274427,A026237,British Gas Trading Limited
North West Leicestershire District Council,31UH,HRAHRM,Housing Repairs,HRA Housing Repairs & Maintenance,Boiler - Gas,31/12/2013,622.33,1274428,A026237,British Gas Trading Limited
North West Leicestershire District Council,31UH,HRAHRM,Housing Repairs,HRA Housing Repairs & Maintenance,Boiler - Gas,31/12/2013,622.33,1274429,A026237,British Gas Trading Limited
North West Leicestershire District Council,31UH,HRAHRM,Housing Repairs,HRA Housing Repairs & Maintenance,Boiler - Gas,31/12/2013,"1,526.93",1274430,A026237,British Gas Trading Limited
North West Leicestershire District Council,31UH,HRAHRM,Housing Repairs,HRA Housing Repairs & Maintenance,Boiler - Gas,31/12/2013,622.33,1274431,A026237,British Gas Trading Limited
North West Leicestershire District Council,31UH,HRAHRM,Housing Repairs,HRA Housing Repairs & Maintenance,Boiler - Gas,31/12/2013,622.33,1274432,A026237,British Gas Trading Limited
North West Leicestershire District Council,31UH,HRAHRM,Housing Repairs,HRA Housing Repairs & Maintenance,Boiler - Gas,31/12/2013,622.33,1274433,A026237,British Gas Trading Limited
North West Leicestershire District Council,31UH,HRAHRM,Housing Repairs,HRA Housing Repairs & Maintenance,Boiler - Gas,31/12/2013,622.33,1274434,A026237,British Gas Trading Limited
North West Leicestershire District Council,31UH,HRAHRM,Housing Repairs,HRA Housing Repairs & Maintenance,Boiler - Gas,31/12/2013,622.33,1274435,A026237,British Gas Trading Limited
North West Leicestershire District Council,31UH,HRAHRM,Housing Repairs,HRA Housing Repairs & Maintenance,Boiler - Gas,31/12/2013,622.33,1274436,A026237,British Gas Trading Limited
North West Leicestershire District Council,31UH,HRAHRM,Housing Repairs,HRA Housing Repairs & Maintenance,Boiler - Gas,31/12/2013,622.33,1274437,A026237,British Gas Trading Limited
North West Leicestershire District Council,31UH,HRAHRM,Housing Repairs,HRA Housing Repairs & Maintenance,Albert Vilage etc,31/12/2013,"1,463.93",1274439,A031086,Premier Waste and Recycling
North West Leicestershire District Council,31UH,HRAHRM,Housing Repairs,HRA Housing Repairs & Maintenance,Albert Vilage etc,31/12/2013,516.62,1274440,A031086,Premier Waste and Recycling
North West Leicestershire District Council,31UH,HRAHRM,Housing Repairs,HRA Housing Repairs & Maintenance,Albert Vilage etc,31/12/2013,"3,348.00",1274449,A035675,Elite Sweep Service
North West Leicestershire District Council,31UH,HRAHRM,Housing Repairs,HRA Housing Repairs & Maintenance,Prepainting,31/12/2013,"8,042.00",1274459,A035827,Novus Property Solutions Limited
North West Leicestershire District Council,31UH,HRAHRM,Housing Repairs,HRA Housing Repairs & Maintenance,Prepainting,31/12/2013,"8,042.00",1274460,A035827,Novus Property Solutions Limited
North West Leicestershire District Council,31UH,HRAHRM,Housing Repairs,HRA Housing Repairs & Maintenance,Prepainting,31/12/2013,"4,145.00",1274461,A035827,Novus Property Solutions Limited
North West Leicestershire District Council,31UH,HRAHRM,Housing Repairs,HRA Housing Repairs & Maintenance,Prepainting,31/12/2013,"4,145.00",1274462,A035827,Novus Property Solutions Limited
North West Leicestershire District Council,31UH,HRAHRM,Housing Repairs,HRA Housing Repairs & Maintenance,Prepainting,31/12/2013,631.00,1274463,A035827,Novus Property Solutions Limited
North West Leicestershire District Council,31UH,HRAHRM,Housing Repairs,HRA Housing Repairs & Maintenance,Prepainting,31/12/2013,631.00,1274464,A035827,Novus Property Solutions Limited
North West Leicestershire District Council,31UH,HRAHRM,Housing Repairs,HRA Housing Repairs & Maintenance,Prepainting,31/12/2013,"2,160.00",1274465,A035827,Novus Property Solutions Limited
North West Leicestershire District Council,31UH,HRAHRM,Housing Repairs,HRA Housing Repairs & Maintenance,Prepainting,08/01/2014,"20,365.50",1274628,A035827,Novus Property Solutions Limited
North West Leicestershire District Council,31UH,HRAHRM,Housing Repairs,HRA Housing Repairs & Maintenance,gas servicing ,08/01/2014,"2,342.27",1274632,A033342,J Tomlinson Ltd
North West Leicestershire District Council,31UH,HRAHRM,Housing Repairs,HRA Housing Repairs & Maintenance,Schedule of rates contract,08/01/2014,"1,732.83",1274642,A031787,Laker BMS Ltd
North West Leicestershire District Council,31UH,HRAHRM,Housing Repairs,HRA Housing Repairs & Maintenance,Prepainting,08/01/2014,879.48,1274683,A035827,Novus Property Solutions Limited
North West Leicestershire District Council,31UH,HRAHRM,Housing Repairs,HRA Housing Repairs & Maintenance,Prepainting,08/01/2014,828.86,1274685,A035827,Novus Property Solutions Limited
North West Leicestershire District Council,31UH,HRAHRM,Housing Repairs,HRA Housing Repairs & Maintenance,Prepainting,08/01/2014,738.17,1274690,A035827,Novus Property Solutions Limited
North West Leicestershire District Council,31UH,HRAHRM,Housing Repairs,HRA Housing Repairs & Maintenance,Prepainting,08/01/2014,683.34,1274704,A035827,Novus Property Solutions Limited
North West Leicestershire District Council,31UH,HRAHRM,Housing Repairs,HRA Housing Repairs & Maintenance,Prepainting,08/01/2014,692.83,1274706,A035827,Novus Property Solutions Limited
North West Leicestershire District Council,31UH,HRAHRM,Housing Repairs,HRA Housing Repairs & Maintenance,Prepainting,08/01/2014,749.77,1274718,A035827,Novus Property Solutions Limited
North West Leicestershire District Council,31UH,HRAHRM,Housing Repairs,HRA Housing Repairs & Maintenance,Prepainting,08/01/2014,661.19,1274771,A035827,Novus Property Solutions Limited
North West Leicestershire District Council,31UH,HRAHRM,Housing Repairs,HRA Housing Repairs & Maintenance,Prepainting,08/01/2014,683.34,1274802,A035827,Novus Property Solutions Limited
North West Leicestershire District Council,31UH,HRAHRM,Housing Repairs,HRA Housing Repairs & Maintenance,Prepainting,08/01/2014,683.34,1274804,A035827,Novus Property Solutions Limited
North West Leicestershire District Council,31UH,HRAHRM,Housing Repairs,HRA Housing Repairs & Maintenance,Ashby De la Zouche,22/01/2014,775.00,1275988,A001152,Morris Vermaport Limited
North West Leicestershire District Council,31UH,HRAHRM,Housing Repairs,HRA Housing Repairs & Maintenance,Ashby De la Zouche,22/01/2014,505.00,1275989,A001152,Morris Vermaport Limited
North West Leicestershire District Council,31UH,HRAHRM,Housing Repairs,HRA Housing Repairs & Maintenance,Ashby De la Zouche,22/01/2014,622.33,1275990,A026237,British Gas Trading Limited
North West Leicestershire District Council,31UH,HRAHRM,Housing Repairs,HRA Housing Repairs & Maintenance,Schedule of rates contract,22/01/2014,"2,981.67",1275991,A031787,Laker BMS Ltd
North West Leicestershire District Council,31UH,HRAHRM,Housing Repairs,HRA Housing Repairs & Maintenance,Schedule of rates contract,22/01/2014,"2,318.85",1276033,A031787,Laker BMS Ltd
North West Leicestershire District Council,31UH,HRAHRM,Housing Repairs,HRA Housing Repairs & Maintenance,gas servicing ,22/01/2014,"2,303.53",1276049,A033342,J Tomlinson Ltd
North West Leicestershire District Council,31UH,HRAHRM,Housing Repairs,HRA Housing Repairs & Maintenance,gas servicing ,22/01/2014,"1,968.37",1276050,A033342,J Tomlinson Ltd
North West Leicestershire District Council,31UH,HRAHRM,Housing Repairs,HRA Housing Repairs & Maintenance,gas servicing ,22/01/2014,651.24,1276051,A033342,J Tomlinson Ltd
North West Leicestershire District Council,31UH,HRAHRM,Housing Repairs,HRA Housing Repairs & Maintenance,gas servicing ,22/01/2014,996.72,1276053,A033342,J Tomlinson Ltd
North West Leicestershire District Council,31UH,HRAHRM,Housing Repairs,HRA Housing Repairs & Maintenance,gas servicing ,22/01/2014,651.24,1276054,A033342,J Tomlinson Ltd
North West Leicestershire District Council,31UH,HRAHRM,Housing Repairs,HRA Housing Repairs & Maintenance,gas servicing ,22/01/2014,839.31,1276055,A033342,J Tomlinson Ltd
North West Leicestershire District Council,31UH,HRAHRM,Housing Repairs,HRA Housing Repairs & Maintenance,door installation,22/01/2014,880.75,1276063,A038041,I G Doors Limited
North West Leicestershire District Council,31UH,HRAHRM,Housing Repairs,HRA Housing Repairs & Maintenance,Schedule of rates contract,22/01/2014,"1,228.23",1276066,A031787,Laker BMS Ltd
North West Leicestershire District Council,31UH,HRAHRM,Housing Repairs,HRA Housing Repairs & Maintenance,Schedule of rates contract,22/01/2014,"1,185.69",1276069,A031787,Laker BMS Ltd
North West Leicestershire District Council,31UH,HRAHRM,Housing Repairs,HRA Housing Repairs & Maintenance,Schedule of rates contract,22/01/2014,"2,933.65",1276070,A031787,Laker BMS Ltd
North West Leicestershire District Council,31UH,HRAHRM,Housing Repairs,HRA Housing Repairs & Maintenance,Schedule of rates contract,22/01/2014,632.04,1276071,A031787,Laker BMS Ltd
North West Leicestershire District Council,31UH,HRAHRM,Housing Repairs,HRA Housing Repairs & Maintenance,Schedule of rates contract,22/01/2014,663.91,1276072,A031787,Laker BMS Ltd
North West Leicestershire District Council,31UH,HRAHRM,Housing Repairs,HRA Housing Repairs & Maintenance,Prepainting,08/01/2014,"20,365.50",1274626,A035827,Novus Property Solutions Limited
North West Leicestershire District Council,31UH,HRAHRM,Housing Repairs,HRA Housing Repairs & Maintenance,Boiler - Gas,15/01/2014,"1,128.76",1275514,A026237,British Gas Trading Limited
North West Leicestershire District Council,31UH,HRAHRM,Housing Repairs,HRA Housing Repairs & Maintenance,Boiler - Gas,15/01/2014,622.33,1275515,A026237,British Gas Trading Limited
North West Leicestershire District Council,31UH,HRAHRM,Housing Repairs,HRA Housing Repairs & Maintenance,Boiler - Gas,15/01/2014,"1,128.76",1275516,A026237,British Gas Trading Limited
North West Leicestershire District Council,31UH,HRAHRM,Housing Repairs,HRA Housing Repairs & Maintenance,Boiler - Gas,15/01/2014,"1,128.76",1275517,A026237,British Gas Trading Limited
North West Leicestershire District Council,31UH,HRAHRM,Housing Repairs,HRA Housing Repairs & Maintenance,Boiler - Gas,15/01/2014,"1,526.97",1275518,A026237,British Gas Trading Limited
North West Leicestershire District Council,31UH,HRAHRM,Housing Repairs,HRA Housing Repairs & Maintenance,Boiler - Gas,15/01/2014,622.33,1275519,A026237,British Gas Trading Limited
North West Leicestershire District Council,31UH,HRAHRM,Housing Repairs,HRA Housing Repairs & Maintenance,Boiler - Gas,15/01/2014,622.33,1275520,A026237,British Gas Trading Limited
North West Leicestershire District Council,31UH,HRAHRM,Housing Repairs,HRA Housing Repairs & Maintenance,Boiler - Gas,15/01/2014,622.33,1275521,A026237,British Gas Trading Limited
North West Leicestershire District Council,31UH,HRAHRM,Housing Repairs,HRA Housing Repairs & Maintenance,Boiler - Gas,15/01/2014,622.33,1275522,A026237,British Gas Trading Limited
North West Leicestershire District Council,31UH,HRAHRM,Housing Repairs,HRA Housing Repairs & Maintenance,door installation,15/01/2014,757.44,1275536,A038041,I G Doors Limited
North West Leicestershire District Council,31UH,HRAHRM,Housing Repairs,HRA Housing Repairs & Maintenance,Schedule of rates contract,15/01/2014,933.74,1275540,A031787,Laker BMS Ltd
North West Leicestershire District Council,31UH,HRAHM,Housing,HRA Housing Management,Subscriptions,22/01/2014,680.00,1275965,A035396,Social Landlords Crime &
North West Leicestershire District Council,31UH,PROPFM,Property Services,Property Facilities Management,General Repairs,31/12/2013,900.00,1274073,A041005,Cotterill (Civils) Ltd
North West Leicestershire District Council,31UH,ENOT,Street Management,Environment Transport,Purchases,31/12/2013,"11,492.40",1274165,A040946,Hall Fuels (Division of Watson Petroleum)
North West Leicestershire District Council,31UH,HRAPBS,Housing,HRA Performance & Business Support,Expenditure against earmarked reserve,08/01/2014,"7,762.50",1274118,A000770,Hinckley & Bosworth Borough Council
North West Leicestershire District Council,31UH,HLC,Leisure Centres,Hermitage Leisure Centre,Service Contracts,31/12/2013,943.86,1274080,A001092,John Merison BMC Ltd
North West Leicestershire District Council,31UH,PROPFM,Property Services,Property Facilities Management,gas servicing ,31/12/2013,"1,084.29",1274152,A033342,J Tomlinson Ltd
North West Leicestershire District Council,31UH,ESS,Street Management,Environment - Street Scene,Green Footprints Exp,31/12/2013,"1,614.00",1274069,A039764,EPT SERVICES
North West Leicestershire District Council,31UH,ESS,Street Management,Environment - Street Scene,Agency Staff,31/12/2013,810.00,1274171,A031571,HBHC Synergy Ltd
North West Leicestershire District Council,31UH,ENOT,Street Management,Environment Transport,Gas,08/01/2014,923.55,1274570,A032686,Calor Gas Limited
North West Leicestershire District Council,31UH,HPLC,Leisure Centres,Hood Park Leisure Centre,General Repairs,15/01/2014,"2,530.00",1275079,A000950,Leicestershire County Council
North West Leicestershire District Council,31UH,PROPFM,Property Services,Property Facilities Management,General Repairs,31/12/2013,"2,924.43",1274097,A039911,Fire Proof Ltd
North West Leicestershire District Council,31UH,ICT,Information Technology,ICT Services,Corporate IT Licences,31/12/2013,"2,227.68",1274167,A001298,Phoenix Software Limited
North West Leicestershire District Council,31UH,ENOT,Street Management,Environment Transport,Repairs - Parts,31/12/2013,560.00,1274213,A039650,Andrew Page Ltd
North West Leicestershire District Council,31UH,HS,Housing Strategy,Community - Housing Strategy,Computing,15/01/2014,"7,916.00",1275083,A037979,Abritas Limited
North West Leicestershire District Council,31UH,ENOGT,Street Management,Environment General Technician,Contract Payments (Other) Ext,15/01/2014,"36,456.22",1275013,A000940,Aggregate Industries Uk Ltd
North West Leicestershire District Council,31UH,HLC,Leisure Centres,Hermitage Leisure Centre,Publicity & Promotion,15/01/2014,510.00,1275048,A037247,MWL Print Group Limited
North West Leicestershire District Council,31UH,ICT,Information Technology,ICT Services,Consumable Materials,31/12/2013,525.76,1274191,A038178,Antalis Limited
North West Leicestershire District Council,31UH,ICT,Information Technology,ICT Services,Admin Equipment - Maintenance,31/12/2013,"5,964.52",1274205,A035119,Chloride Electronics Limited T/A Emerson Network Power
North West Leicestershire District Council,31UH,HS,Housing Strategy,Community - Housing Strategy,Homelessness Strategy,08/01/2014,"1,000.00",1274193,A001208,MRC Community Action
North West Leicestershire District Council,31UH,ICT,Information Technology,ICT Services,Training Expenses,15/01/2014,"2,580.00",1274177,A001232,Oadby & Wigston Borough Council
North West Leicestershire District Council,31UH,ICT,Information Technology,ICT Services,Consumable Materials,15/01/2014,580.00,1274958,A033406,Alfred Willday & Son Ltd
North West Leicestershire District Council,31UH,EDC,Planning & Development,Environment - Development Control,Untranslateable Postings,15/01/2014,"3,000.00",1274365,A034291,Valuation Office Agency
North West Leicestershire District Council,31UH,PROPCL,Property Services,Property Commercial Lettings,General Repairs,22/01/2014,"1,768.25",1274176,A030887,T Denman & Sons (Melton Mowbray) Ltd
North West Leicestershire District Council,31UH,HPLC,Leisure Centres,Hood Park Leisure Centre,General Repairs,22/01/2014,"1,033.40",1275879,A028616,Christy Lighting Ltd
North West Leicestershire District Council,31UH,PROPFM,Property Services,Property Facilities Management,Purchases,22/01/2014,"1,152.39",1274175,A030887,T Denman & Sons (Melton Mowbray) Ltd
North West Leicestershire District Council,31UH,HRAHM,Housing,HRA Housing Management,Central Printing,15/01/2014,"1,459.75",1274932,A025384,Wilpbond Limited t/a Prontaprint
North West Leicestershire District Council,31UH,HRAPBS,Housing,HRA Performance & Business Support,Interim Support,31/12/2013,"3,300.00",1274363,A040578,Matthew Barney
North West Leicestershire District Council,31UH,HOFI,Finance,Head of Finance,Legal & Professional Services,08/01/2014,"13,250.00",1274484,A000323,Charnwood Borough Council
North West Leicestershire District Council,31UH,PROPCL,Property Services,Property Commercial Lettings,Contract Cleaning,22/01/2014,506.18,1274495,A003037,Coalville Cleaning Services
North West Leicestershire District Council,31UH,CDCC,Leisure Centres,Castle Donington Community College,Alternative Fitness Suite,15/01/2014,522.58,1275004,A005413,Elliott Group Limited
North West Leicestershire District Council,31UH,PROPFM,Property Services,Property Facilities Management,Building Security,15/01/2014,525.60,1274955,A013049,Regarde Security Ltd
North West Leicestershire District Council,31UH,EEHL,Environmental Health,Environmental Health & Licensing,Vet Inspection,15/01/2014,"1,116.93",1275060,A033670,Eville And Jones Limited
North West Leicestershire District Council,31UH,HOFI,Finance,Head of Finance,Shared Revs & Bens Partnership costs,08/01/2014,"17,197.00",1274485,A000770,Hinckley & Bosworth Borough Council
North West Leicestershire District Council,31UH,ICT,Information Technology,ICT Services,Admin Equipment - Maintenance,15/01/2014,"2,730.98",1274941,A038473,Cable & Wireless Worldwide
North West Leicestershire District Council,31UH,ECCTV,Planning & Development,Environment - Town Centre/CCTV,Agency Staff,15/01/2014,"3,923.00",1275054,A038132,Premier Security Services (Midlands) Limited
North West Leicestershire District Council,31UH,ESS,Street Management,Environment - Street Scene,LCC Contribution,22/01/2014,"6,477.60",1274990,A039143,Change Agents UK Trading
North West Leicestershire District Council,31UH,PROPCL,Property Services,Property Commercial Lettings,Internal Decorations,22/01/2014,552.50,1275743,A003371,Urban Planters Leicestershire (limited)
North West Leicestershire District Council,31UH,HLC,Leisure Centres,Hermitage Leisure Centre,Service Contracts,22/01/2014,760.44,1275829,A000021,ADT Fire And Security
North West Leicestershire District Council,31UH,PROPFM,Property Services,Property Facilities Management,gas servicing ,08/01/2014,850.00,1274533,A033342,J Tomlinson Ltd
North West Leicestershire District Council,31UH,HPBC,Leisure Centres,Hood Park Bar and Catering,Catering Provisions,15/01/2014,509.41,1275087,A001264,Palmer Harvey Mclane Ltd
North West Leicestershire District Council,31UH,ENOT,Street Management,Environment Transport,Gas,22/01/2014,877.61,1275733,A032686,Calor Gas Limited
North West Leicestershire District Council,31UH,HRAHM,Housing,HRA Housing Management,Annual Report To Tenants,22/01/2014,712.00,1276080,A037241,Taylor Bloxham Ltd
North West Leicestershire District Council,31UH,PROPFM,Property Services,Property Facilities Management,Alt & Mtce-Fixed Plant,15/01/2014,573.00,1275080,A006288,Protec Fire Detection Plc
North West Leicestershire District Council,31UH,HPLC,Leisure Centres,Hood Park Leisure Centre,Equipment For Resale,15/01/2014,"1,023.30",1275043,A001833,Zoggs International Ltd
North West Leicestershire District Council,31UH,ENOT,Street Management,Environment Transport,Purchases,22/01/2014,"1,277.00",1275834,A037391,Emo Oil Limited
North West Leicestershire District Council,31UH,ICT,Information Technology,ICT Services,Corporate IT Licences,15/01/2014,888.00,1275014,A036989,Sec-1
North West Leicestershire District Council,31UH,HLC,Leisure Centres,Hermitage Leisure Centre,Street Sport Programme,15/01/2014,838.45,1274966,A038966,Universal Services
North West Leicestershire District Council,31UH,ESS,Street Management,Environment - Street Scene,Agency Staff,22/01/2014,"2,025.00",1275778,A031571,HBHC Synergy Ltd
North West Leicestershire District Council,31UH,HR,Corporate Director,Human Resources,Interim Support,22/01/2014,"1,593.70",1275732,A033121,Libby Carter Limited
North West Leicestershire District Council,31UH,ENOT,Street Management,Environment Transport,Purchases,15/01/2014,"21,386.59",1275053,A040946,Hall Fuels (Division of Watson Petroleum)
North West Leicestershire District Council,31UH,ICT,Information Technology,ICT Services,Consumable Materials,22/01/2014,594.16,1275817,A038178,Antalis Limited
North West Leicestershire District Council,31UH,HPBC,Leisure Centres,Hood Park Bar and Catering,Bar Provisions,22/01/2014,709.80,1275882,A039915,LWC - Birmingham
North West Leicestershire District Council,31UH,ENOT,Street Management,Environment Transport,Repairs - Parts,15/01/2014,"1,913.71",1275055,A001647,Terberg Matec UK Limited
North West Leicestershire District Council,31UH,ICT,Information Technology,ICT Services,Admin Equipment - Maintenance,15/01/2014,"1,824.58",1275098,A032826,Freedom Communications (UK) Ltd
North West Leicestershire District Council,31UH,HRAHRM,Housing Repairs,HRA Housing Repairs & Maintenance,General Materials,22/01/2014,"1,900.00",1275096,A040963,Greasley Electronics Ltd
North West Leicestershire District Council,31UH,HPBC,Leisure Centres,Hood Park Bar and Catering,Catering Provisions,22/01/2014,520.04,1275923,A001264,Palmer Harvey Mclane Ltd
North West Leicestershire District Council,31UH,ENOT,Street Management,Environment Transport,Transport Costs - Engine Oil,22/01/2014,"2,455.70",1275870,A028311,Freedom Lubricants Ltd
North West Leicestershire District Council,31UH,PROC,Chief Exec,Procurement,Subscriptions,22/01/2014,"2,500.00",1275927,A033994,BiP Solutions Ltd
North West Leicestershire District Council,31UH,HRAPBS,Housing,HRA Performance & Business Support,Training Expenses,22/01/2014,987.50,1275745,A040435,Kaplan Financial
North West Leicestershire District Council,31UH,HLC,Leisure Centres,Hermitage Leisure Centre,Operational Equipment,22/01/2014,665.00,1275838,A000958,ESPO
North West Leicestershire District Council,31UH,HPLC,Leisure Centres,Hood Park Leisure Centre,Maintenance/Office Expenditure,31/12/2013,602.75,1274129,A034820,Building Automation Solutions Limited
North West Leicestershire District Council,31UH,ICT,Information Technology,ICT Services,Admin Equipment - Maintenance,31/12/2013,950.00,1270858,A034157,Idox Software Ltd
North West Leicestershire District Council,31UH,HRAHM,Housing,HRA Housing Management,Residents Associations,31/12/2013,605.00,1274004,A014371,The East Midlands TP Forum
North West Leicestershire District Council,31UH,ENOT,Street Management,Environment Transport,Non Scheduled Maintenance - Parts,31/12/2013,693.81,1274183,A017053,Aebi Schmidt Uk Limited
North West Leicestershire District Council,31UH,CULTEV,Leisure & Culture,Cultural Services Arts & Events,Town Centre Management - Christmas Dec,08/01/2014,"2,400.00",1274814,A027592,Chameleon Pro Audio T/A Lux Technical Ltd
North West Leicestershire District Council,31UH,EEHL,Environmental Health,Environmental Health & Licensing,Professional Fees,31/12/2013,966.00,1272821,A027750,CIEH
North West Leicestershire District Council,31UH,ICT,Information Technology,ICT Services,Admin Equipment - Maintenance,22/01/2014,"1,824.58",1275801,A032826,Freedom Communications (UK) Ltd
North West Leicestershire District Council,31UH,HR,Corporate Director,Human Resources,Purchases,31/12/2013,"2,901.00",1273985,A038606,Premier Employer Solutions Limited
North West Leicestershire District Council,31UH,HR,Corporate Director,Human Resources,Interim Support,08/01/2014,"2,038.00",1274499,A033121,Libby Carter Limited
North West Leicestershire District Council,31UH,ENOT,Street Management,Environment Transport,Repairs - Parts,31/12/2013,"1,816.88",1274247,A017895,Geesink Norba Limited
North West Leicestershire District Council,31UH,ENOGT,Street Management,Environment General Technician,Routine Ground Maintenance,08/01/2014,"1,019.35",1274565,A000438,Cuckoo Gap Limited
North West Leicestershire District Council,31UH,ENOGT,Street Management,Environment General Technician,Routine Ground Maintenance,08/01/2014,"1,519.40",1274567,A000438,Cuckoo Gap Limited
North West Leicestershire District Council,31UH,ENOGT,Street Management,Environment General Technician,Routine Ground Maintenance,08/01/2014,"2,513.94",1274566,A000438,Cuckoo Gap Limited
North West Leicestershire District Council,31UH,CP,Communications,Corporate - Communications,Publicity & Promotion,31/12/2013,590.00,1274066,A039259,Printvision UK Ltd
North West Leicestershire District Council,31UH,ENOT,Street Management,Environment Transport,Transport Costs - Tyres,15/01/2014,785.08,1274916,A033268,Bandvulc Tyres Ltd
North West Leicestershire District Council,31UH,HPBC,Leisure Centres,Hood Park Bar and Catering,Operational Equipment,31/12/2013,"1,300.00",1274138,A000639,William Freer Ltd
North West Leicestershire District Council,31UH,ESS,Street Management,Environment - Street Scene,Boiler Replacement,31/12/2013,"3,103.84",1272650,A040460,Sure Maintenance Ltd
North West Leicestershire District Council,31UH,EEHL,Environmental Health,Environmental Health & Licensing,Agency Staff,31/12/2013,810.00,1273924,A031571,HBHC Synergy Ltd
North West Leicestershire District Council,31UH,HLBC,Leisure Centres,Hermitage Bar & Catering,Bar Provisions,31/12/2013,663.55,1274083,A039915,LWC - Birmingham
North West Leicestershire District Council,31UH,HLC,Leisure Centres,Hermitage Leisure Centre,General Repairs,31/12/2013,"1,749.95",1274141,A001092,John Merison BMC Ltd
North West Leicestershire District Council,31UH,PROPFM,Property Services,Property Facilities Management,Purchases,08/01/2014,"1,000.00",1274910,A036009,Turnkey Design Partnership Limited
North West Leicestershire District Council,31UH,HRAHM,Housing,HRA Housing Management,Cleaning & Domestic Equipment,22/01/2014,712.00,1276083,A034116,A J Contracts
North West Leicestershire District Council,31UH,PROPFM,Property Services,Property Facilities Management,gas servicing ,22/01/2014,"1,490.40",1275899,A033342,J Tomlinson Ltd
North West Leicestershire District Council,31UH,PROPFM,Property Services,Property Facilities Management,gas servicing ,22/01/2014,862.50,1275900,A033342,J Tomlinson Ltd
North West Leicestershire District Council,31UH,PROPCL,Property Services,Property Commercial Lettings,gas servicing ,22/01/2014,680.34,1275928,A033342,J Tomlinson Ltd
North West Leicestershire District Council,31UH,ENOT,Street Management,Environment Transport,Training Expenses,22/01/2014,530.00,1275910,A027792,Keith Cook Training Services
North West Leicestershire District Council,31UH,ESS,Street Management,Environment - Street Scene,Subscriptions,22/01/2014,"1,995.00",1275931,A025681,Keep Britain Tidy
,,,,,,,"2,491,235.89",,,
